bitfinex/quotes_ETHUSD_20240716
["timestamp","ask_amount","ask_price","bid_price","bid_amount"]
[1721123335572,1.53770444,3402.6,3401.9,2.93951]
[1721123337181,1.53720244,3402.6,3401.9,2.93951]
[1721123337336,2.93885,3402.7,3402.0,2.93943]
[1721123337688,1.58818851,3402.8,3402.0,2.93943]
[1721123337976,4.47569244,3403.1,3402.2,2.93925]
[1721123338187,4.74720244,3403.2,3402.5,2.93901]
[1721123338486,3.21,3403.2,3402.6,2.93892]
[1721123339147,3.98364307,3403.2,3402.6,2.93892]
[1721123339472,3.98364307,3403.2,3402.5,2.3106]
[1721123339678,6.92206307,3403.2,3402.5,2.3106]
[1721123339887,2.93859,3403.0,3402.5,2.3106]
[1721123340055,2.93859,3403.0,3402.3,2.93918]
[1721123340056,2.9388,3402.8,3402.2,2.3106]
[1721123340902,2.93894,3402.6,3401.7,2.3812]
[1721123341186,2.93901,3402.5,3401.7,2.3812]
[1721123341350,2.93919,3402.3,3401.7,2.3812]
[1721123341772,3.68067628,3402.3,3401.7,2.3812]
[1721123343011,0.74148628,3402.3,3401.7,5.3209]
[1721123343172,1.53725146,3402.7,3402.1,2.93935]
[1721123343503,1.53725146,3402.8,3402.1,2.93935]
[1721123343707,0.5615727,3402.7,3402.1,2.93935]
[1721123344077,0.5615727,3402.7,3401.9,2.93953]
[1721123344270,0.5615727,3402.7,3402.2,2.93926]
[1721123344465,5.61571701,3402.9,3402.2,2.93926]
[1721123344780,2.67703701,3402.9,3402.3,0.05878203]
[1721123344983,12.11725146,3403.2,3402.6,5.20962]
[1721123345192,4.74725146,3403.2,3402.6,5.20962]
[1721123345504,3.21,3403.2,3402.6,5.20962]
[1721123346711,3.21,3403.2,3402.8,2.93873]
[1721123347389,3.21,3403.2,3402.7,2.93879]
[1721123348078,3.21,3403.2,3402.8,2.93875]
[1721123348876,1.53731777,3403.6,3403.0,2.3794]
[1721123349103,10.30766,3404.1,3403.2,2.93839]
[1721123349310,4.47539016,3403.7,3403.0,5.31796]
[1721123349496,2.93798,3403.7,3403.0,5.31796]
[1721123350214,1.53741016,3403.8,3403.2,2.93834]
[1721123350377,4.52611194,3404.1,3403.3,2.93828]
[1721123350573,0.74636819,3404.0,3403.4,2.93822]
[1721123350812,0.06179189,3403.9,3403.5,2.93808]
[1721123351507,0.06179189,3403.9,3403.6,5.33479708]
[1721123351811,0.06179189,3403.9,3403.6,5.27604]
[1721123352118,0.06179189,3403.9,3403.6,2.338]
[1721123352469,0.36174108,3403.9,3403.6,2.338]
[1721123353196,0.06179189,3403.9,3403.6,2.338]
[1721123354782,0.06179189,3403.9,3403.6,5.27599]
[1721123354984,0.06179189,3403.9,3403.6,2.338]
[1721123357016,0.06179189,3403.9,3403.0,2.93856]
[1721123357728,0.06179189,3403.9,3403.1,2.4668]
[1721123358234,0.06179189,3403.9,3403.3,2.9383]
[1721123359095,0.06179189,3403.9,3403.5,2.4568]
[1721123359391,0.06179189,3403.9,3403.6,2.938]
[1721123359794,0.06179189,3403.9,3403.8,5.87578]
[1721123360492,0.06179189,3403.9,3403.8,8.13818]
[1721123364047,0.06179189,3403.9,3403.8,5.20029]
[1721123364754,0.06179189,3403.9,3403.3,5.39144]
[1721123365045,0.06179189,3403.9,3402.9,2.93866]
[1721123365211,3.29955508,3403.9,3403.0,2.93858]
[1721123365409,3.29955508,3403.9,3403.1,2.93848]
[1721123366524,2.93789,3403.8,3402.9,5.39186]
[1721123366715,0.06179189,3403.7,3403.0,2.93852]
[1721123366951,0.06179189,3403.7,3403.2,2.93835]
[1721123367750,0.06179189,3403.7,3403.3,2.93831]
[1721123368112,0.06179189,3403.7,3403.6,2.93806]
[1721123369909,0.06179189,3403.7,3403.6,5.20536]
[1721123370106,0.06179189,3403.7,3403.6,8.95777]
[1721123370724,0.06179189,3403.7,3403.6,6.01971]
[1721123371576,0.06179189,3403.7,3403.4,2.93822]
[1721123371849,0.06179189,3403.7,3403.3,2.93826]
[1721123372047,0.06179189,3403.7,3403.2,2.2622]
[1721123372413,0.06179189,3403.7,3403.1,2.93849]
[1721123372624,2.93806,3403.6,3402.9,3.771657]
[1721123372861,2.93806,3403.6,3402.9,0.833067]
[1721123372862,0.06179189,3403.5,3402.9,0.833067]
[1721123373016,0.06179189,3403.5,3402.1,2.93932]
[1721123373017,2.99994189,3403.5,3402.4,2.93908]
[1721123373213,2.9384,3403.3,3402.4,2.93908]
[1721123373529,2.93858,3403.0,3402.2,5.41426]
[1721123373725,2.93858,3403.0,3401.4,3.043]
[1721123373726,0.06179189,3402.9,3401.6,2.3603]
[1721123373927,2.9392,3402.3,3401.5,2.93987]
[1721123374236,2.9392,3402.3,3401.2,2.94012]
[1721123374237,3.00107189,3402.2,3401.2,2.94012]
[1721123374442,0.06179189,3402.1,3401.3,2.94]
[1721123374622,0.06179189,3402.1,3401.4,2.93996]
[1721123375113,3.00116189,3402.1,3401.1,2.3603]
[1721123375310,3.00116189,3402.1,3401.0,2.94024]
[1721123375311,2.93963,3401.8,3401.0,2.94024]
[1721123375627,0.06179189,3401.7,3401.0,2.94024]
[1721123376819,2.93984,3401.6,3400.7,2.94055]
[1721123377037,0.06179189,3401.5,3400.7,2.94055]
[1721123377250,0.06179189,3401.5,3400.6,2.3603]
[1721123377251,0.06179189,3401.5,3400.8,2.94047]
[1721123378526,3.00167189,3401.5,3400.8,2.94047]
[1721123378732,0.33018141,3401.4,3400.8,2.94047]
[1721123378921,0.06179189,3401.3,3400.8,2.94047]
[1721123380955,0.06179189,3401.3,3401.0,2.94029]
[1721123381170,0.06179189,3401.3,3400.8,2.94047]
[1721123383157,0.06179189,3401.3,3400.9,2.94036]
[1721123383359,0.06179189,3401.3,3400.9,0.824113]
[1721123383542,0.06179189,3401.3,3401.2,2.94013]
[1721123385379,0.06179189,3401.3,3401.0,2.94022]
[1721123386226,0.06179189,3401.3,3401.1,2.94022]
[1721123386628,0.06179189,3401.3,3401.2,2.94013]
[1721123387037,0.06179189,3401.3,3401.2,5.88026]
[1721123387257,0.06179189,3401.3,3401.2,6.468286]
[1721123387628,0.06179189,3401.3,3401.2,0.588026]
[1721123387832,0.06179189,3401.3,3401.0,2.94029]
[1721123388274,0.06179189,3401.3,3400.6,2.3603]
[1721123388275,0.06179189,3401.3,3400.7,2.94056]
[1721123388431,0.06179189,3401.3,3400.5,2.94068]
[1721123388631,0.06179189,3401.3,3400.7,2.94055]
[1721123389231,0.06179189,3401.3,3400.8,2.94047]
[1721123389461,0.06179189,3401.3,3400.8,3.528585]
[1721123390642,0.06179189,3401.3,3400.8,2.9404]
[1721123390847,0.06179189,3401.3,3400.9,2.94033]
[1721123391876,0.06179189,3401.3,3400.7,2.94056]
[1721123392668,0.06179189,3401.3,3400.8,2.94043]
[1721123393284,0.06179189,3401.3,3400.9,2.94038]
[1721123394551,0.06179189,3401.3,3400.8,2.94048]
[1721123394749,0.06179189,3401.3,3400.6,2.94057]
[1721123395045,0.06179189,3401.3,3400.7,2.94052]
[1721123397289,0.06179189,3401.3,3400.8,2.94046]
[1721123397677,0.06179189,3401.3,3400.9,2.94033]
[1721123398864,0.06179189,3401.3,3401.0,2.9403]
[1721123401089,0.06179189,3401.3,3400.8,2.94048]
[1721123401575,0.06179189,3401.3,3400.9,2.94038]
[1721123402171,0.06179189,3401.3,3401.0,2.9403]
[1721123403733,0.06179189,3401.3,3401.2,2.94013]
[1721123403852,0.06179189,3401.3,3401.2,5.88026]
[1721123404865,0.06179189,3401.3,3401.2,2.94013]
[1721123407765,0.06179189,3401.3,3401.0,2.94029]
[1721123407967,0.06179189,3401.3,3400.6,2.94062]
[1721123408281,3.41161974,3401.3,3400.6,2.94062]
[1721123408797,2.94014,3401.2,3400.5,2.94068]
[1721123408960,0.06179189,3401.1,3400.5,2.94068]
[1721123409159,0.06179189,3401.1,3400.4,2.94076]
[1721123409513,3.00202189,3401.1,3400.4,2.94076]
[1721123409791,0.06179189,3401.1,3400.5,2.94073]
[1721123410106,3.00203189,3401.1,3400.3,2.94086]
[1721123410886,2.94032,3401.0,3400.2,2.94097]
[1721123411087,0.06179189,3400.9,3400.2,2.94097]
[1721123411581,0.06179189,3400.9,3400.3,2.9409]
[1721123412390,0.71954138,3400.9,3400.3,2.9409]
[1721123412788,0.06179189,3400.9,3400.3,2.9409]
[1721123413699,0.06179189,3400.9,3400.0,6.94114]
[1721123413700,2.94061,3400.7,3400.0,6.94114]
[1721123413888,0.06179189,3400.6,3400.0,6.94114]
[1721123415914,3.00245189,3400.6,3400.0,4.0]
[1721123416203,3.84160308,3400.6,3400.0,4.0]
[1721123416502,2.94074,3400.5,3400.0,4.0]
[1721123416709,0.06179189,3400.4,3400.0,4.0]
[1721123417207,3.00264189,3400.4,3400.0,4.0]
[1721123417361,2.94107,3400.2,3400.0,4.0]
[1721123417562,0.36207808,3400.1,3400.0,4.0]
[1721123418504,3.30315808,3400.1,3400.0,4.0]
[1721123418940,8.64543808,3400.1,3400.0,4.0]
[1721123419287,9.86871175,3400.1,3400.0,4.0]
[1721123419529,8.64543808,3400.1,3400.0,4.0]
[1721123420328,9.86871175,3400.1,3400.0,4.0]
[1721123420494,8.64543808,3400.1,3400.0,4.0]
[1721123427258,9.86871175,3400.1,3400.0,4.0]
[1721123427458,8.64543808,3400.1,3400.0,4.0]
[1721123427961,8.69649518,3400.1,3400.0,4.0]
[1721123428165,11.63757518,3400.1,3400.0,4.0]
[1721123428367,12.86084885,3400.1,3400.0,4.0]
[1721123428729,9.91976885,3400.1,3400.0,4.0]
[1721123428962,8.69649518,3400.1,3400.0,4.0]
[1721123429432,9.91976885,3400.1,3400.0,4.0]
[1721123430171,8.69649518,3400.1,3400.0,4.0]
[1721123430386,3.05392899,3400.1,3400.0,4.0]
[1721123431644,0.11284899,3400.1,3400.0,4.0]
[1721123431845,0.06179189,3400.1,3400.0,4.0]
[1721123434798,3.00287189,3400.1,3400.0,4.0]
[1721123435105,7.48076671,3400.1,3400.0,4.0]
[1721123435405,7.78493534,3400.1,3400.0,4.0]
[1721123435577,9.32165877,3400.1,3400.0,4.0]
[1721123435961,7.78493534,3400.1,3400.0,4.0]
[1721123436414,9.32154625,3400.1,3400.0,4.0]
[1721123436919,4.84385534,3400.1,3400.0,4.0]
[1721123437214,4.23209872,3400.1,3400.0,4.0]
[1721123437418,3.00287189,3400.1,3400.0,4.0]
[1721123438701,5.94395189,3400.1,3400.0,4.0]
[1721123438921,7.17328851,3400.1,3400.0,4.0]
[1721123439238,5.94395189,3400.1,3400.0,4.0]
[1721123439437,6.69199957,3400.1,3400.0,4.0]
[1721123439597,7.9213364,3400.1,3400.0,4.0]
[1721123440000,6.69199957,3400.1,3400.0,4.0]
[1721123441015,8.2287283,3400.1,3400.0,4.0]
[1721123441321,6.69199957,3400.1,3400.0,4.0]
[1721123442254,7.15355722,3400.1,3400.0,4.0]
[1721123443418,8.69034158,3400.1,3400.0,4.0]
[1721123443851,7.15355722,3400.1,3400.0,4.0]
[1721123445856,10.09463722,3400.1,3400.0,4.0]
[1721123446023,16.26818045,3400.1,3400.0,4.0]
[1721123446219,18.11305125,3400.1,3400.0,4.0]
[1721123446531,18.41921721,3400.1,3400.0,4.0]
[1721123446737,16.57434641,3400.1,3400.0,4.0]
[1721123447450,18.41916316,3400.1,3400.0,4.0]
[1721123447647,16.57434641,3400.1,3400.0,4.0]
[1721123447952,15.55963722,3400.1,3400.0,4.0]
[1721123448153,15.86579309,3400.1,3400.0,4.0]
[1721123449441,16.57425487,3400.1,3400.0,4.0]
[1721123450684,21.66729735,3400.1,3400.0,4.0]
[1721123451287,21.66903346,3400.1,3400.0,4.0]
[1721123451460,11.10935181,3400.1,3400.0,4.0]
[1721123452371,11.16042619,3400.1,3400.0,4.0]
[1721123453561,13.31402784,3400.1,3400.0,4.0]
[1721123453989,11.16042619,3400.1,3400.0,4.0]
[1721123454398,10.45186747,3400.1,3400.0,4.0]
[1721123454568,13.31686042,3400.1,3400.0,4.0]
[1721123454898,11.16031643,3400.1,3400.0,4.0]
[1721123455279,13.31671359,3400.1,3400.0,4.0]
[1721123455807,11.16031643,3400.1,3400.0,4.0]
[1721123456111,7.47118875,3400.1,3400.0,4.0]
[1721123456402,8.55213965,3400.1,3400.0,4.0]
[1721123456604,0.82131523,3400.1,3400.0,4.0]
[1721123456765,0.11286627,3400.1,3400.0,6.404]
[1721123456974,0.06179189,3400.1,3400.0,6.404]
[1721123457807,1.60288982,3400.1,3400.0,6.404]
[1721123458183,0.06179189,3400.1,3400.0,10.279711]
[1721123460180,0.06179189,3400.1,3400.0,13.220881]
[1721123463341,0.06179189,3400.1,3400.0,6.404]
[1721123463486,1.29437476,3400.1,3400.0,6.404]
[1721123464124,0.06179189,3400.1,3400.0,6.404]
[1721123464857,5.94395189,3400.1,3400.0,4.0]
[1721123465016,11.5443517,3400.1,3400.0,4.0]
[1721123465341,11.66959815,3400.1,3400.0,4.0]
[1721123466209,14.61067815,3400.1,3400.0,4.0]
[1721123466543,17.71167815,3400.1,3400.0,4.0]
[1721123466708,18.01795556,3400.1,3400.0,4.0]
[1721123466911,18.01818309,3400.1,3400.0,4.0]
[1721123467100,14.91718309,3400.1,3400.0,4.0]
[1721123467302,16.76842753,3400.1,3400.0,4.0]
[1721123467938,14.61090568,3400.1,3400.0,4.0]
[1721123468253,3.71137539,3400.1,3400.0,4.0]
[1721123468436,0.77029539,3400.1,3400.0,4.0]
[1721123468634,0.06179189,3400.1,3400.0,4.0]
[1721123470552,1.29436145,3400.1,3400.0,4.0]
[1721123470770,0.06179189,3400.1,3400.0,4.0]
[1721123475444,3.00287189,3400.1,3400.0,4.0]
[1721123475649,3.45718859,3400.1,3400.0,4.0]
[1721123476148,4.99743011,3400.1,3400.0,4.0]
[1721123476560,3.45718859,3400.1,3400.0,4.0]
[1721123478070,4.54323761,3400.1,3400.0,4.0]
[1721123478894,3.00287189,3400.1,3400.0,4.0]
[1721123479909,4.5433834,3400.1,3400.0,4.0]
[1721123480215,3.00287189,3400.1,3400.0,4.0]
[1721123481479,3.71116571,3400.1,3400.0,4.0]
[1721123481679,5.55979809,3400.1,3400.0,4.0]
[1721123481907,3.00287189,3400.1,3400.0,4.0]
[1721123482215,3.78211432,3400.1,3400.0,4.0]
[1721123482382,9.28023165,3400.1,3400.0,4.0]
[1721123482589,6.72319432,3400.1,3400.0,4.0]
[1721123482775,6.77426095,3400.1,3400.0,4.0]
[1721123482974,12.37434218,3400.1,3400.0,4.0]
[1721123483175,13.46658865,3400.1,3400.0,4.0]
[1721123483393,15.90808865,3400.1,3400.0,4.0]
[1721123484071,13.46658865,3400.1,3400.0,4.0]
[1721123484277,10.52550865,3400.1,3400.0,4.0]
[1721123484710,3.76218622,3400.1,3400.0,4.0]
[1721123484908,8.55193132,3400.1,3400.0,4.0]
[1721123485322,5.61085132,3400.1,3400.0,4.0]
[1721123485614,4.5943518,3400.1,3400.0,4.0]
[1721123486106,3.05393852,3400.1,3400.0,4.0]
[1721123486731,4.59434333,3400.1,3400.0,4.0]
[1721123486946,3.05393852,3400.1,3400.0,4.0]
[1721123487307,4.59434333,3400.1,3400.0,4.0]
[1721123487498,3.05393852,3400.1,3400.0,4.0]
[1721123487699,0.11285852,3400.1,3400.0,4.0]
[1721123487904,0.06179189,3400.1,3400.0,4.0]
[1721123488318,0.06179189,3400.1,3400.0,4.924721]
[1721123488701,0.06179189,3400.1,3400.0,4.0]
[1721123490304,0.06179189,3400.1,3400.0,6.94117]
[1721123491054,0.06179189,3400.1,3400.0,9.29057]
[1721123491934,0.06179189,3400.1,3400.0,12.23174]
[1721123493436,0.06179189,3400.1,3400.0,6.3494]
[1721123497245,0.06179189,3400.1,3400.0,9.29057]
[1721123497451,0.06179189,3400.1,3400.0,10.513745]
[1721123498276,0.06179189,3400.1,3400.0,9.29057]
[1721123500269,0.06179189,3400.1,3400.0,6.3494]
[1721123500470,0.06179189,3400.1,3400.0,4.0]
[1721123501003,1.60311904,3400.1,3400.0,4.0]
[1721123501212,0.06179189,3400.1,3400.0,4.0]
[1721123502708,3.78223388,3400.1,3400.0,4.0]
[1721123502868,5.6322219,3400.1,3400.0,4.0]
[1721123503204,3.78223388,3400.1,3400.0,4.0]
[1721123503379,3.00287189,3400.1,3400.0,4.0]
[1721123504519,0.06179189,3400.1,3400.0,4.0]
[1721123505680,1.60348203,3400.1,3400.0,4.0]
[1721123508772,0.06179189,3400.1,3400.0,9.34597]
[1721123509609,0.06179189,3400.1,3400.0,6.4048]
[1721123510210,0.06179189,3400.1,3400.0,9.34597]
[1721123511371,0.06179189,3400.1,3400.0,6.4048]
[1721123512172,0.06179189,3400.1,3400.0,1.4048]
[1721123512369,0.06179189,3400.1,3400.0,4.34597]
[1721123516128,0.06179189,3400.1,3400.0,8.01587]
[1721123518219,0.06179189,3400.1,3400.0,10.95704]
[1721123518736,7.37,3400.8,3400.1,2.3138]
[1721123519202,7.37,3400.8,3400.7,8.19494]
[1721123519402,13.99220214,3401.3,3401.0,2.9403]
[1721123519403,7.37,3401.2,3401.0,2.9403]
[1721123519753,7.37,3401.2,3400.7,3.133294]
[1721123519754,1.54220214,3401.6,3401.3,2.94002]
[1721123520805,1.54116936,3401.6,3401.3,2.94002]
[1721123521003,1.54116936,3401.6,3401.4,2.93994]
[1721123521752,1.54116936,3401.6,3400.7,5.25432]
[1721123521753,1.54116936,3401.5,3400.9,2.94039]
[1721123521916,1.84940323,3401.8,3400.9,2.94039]
[1721123521917,1.54079043,3401.3,3400.9,2.94039]
[1721123522247,1.54079043,3401.2,3401.0,2.94027]
[1721123522410,0.15407904,3401.1,3400.8,2.94043]
[1721123522615,1.54079043,3401.2,3400.7,5.25433]
[1721123522616,1.54079043,3401.2,3400.9,2.94039]
[1721123523118,1.54079043,3401.1,3400.7,2.3138]
[1721123523435,2.94013,3401.2,3400.7,2.3138]
[1721123523436,1.54079043,3401.2,3400.7,2.3138]
[1721123524427,1.54079043,3401.2,3400.8,2.94048]
[1721123524641,1.54079043,3401.2,3400.5,2.94072]
[1721123524642,1.54079043,3401.1,3400.5,2.94072]
[1721123524845,4.78938323,3401.4,3400.6,2.94064]
[1721123524846,1.54079043,3401.0,3400.6,2.94064]
[1721123526132,1.54079043,3401.0,3400.6,5.88128]
[1721123526328,1.54079043,3401.1,3400.6,5.88128]
[1721123526565,2.27508592,3401.1,3400.6,2.94064]
[1721123526932,0.7348793,3401.1,3400.6,2.94064]
[1721123527157,0.7348793,3401.1,3400.7,2.94056]
[1721123527465,2.27508592,3401.1,3400.7,2.94056]
[1721123528275,0.7348793,3401.1,3400.7,2.94056]
[1721123529174,2.27508592,3401.1,3400.7,2.94056]
[1721123529348,0.22750859,3401.0,3400.7,2.94056]
[1721123529937,1.5404067,3401.1,3400.7,2.94056]
[1721123530246,1.54080966,3401.1,3400.7,2.94056]
[1721123530935,1.54080966,3401.1,3400.5,2.94074]
[1721123531278,1.54080966,3401.0,3400.5,2.94074]
[1721123531448,1.54080966,3401.0,3400.6,2.94064]
[1721123531956,1.54080966,3401.0,3400.5,2.94074]
[1721123532279,1.98889563,3401.0,3400.5,2.94074]
[1721123533073,1.98920443,3401.0,3400.5,2.94074]
[1721123534630,4.92957443,3401.0,3400.3,5.24754]
[1721123534830,1.54111846,3400.9,3400.3,5.24754]
[1721123535064,2.3280909,3400.9,3400.3,5.24754]
[1721123536386,2.3280909,3400.9,3399.3,2.94174]
[1721123536387,2.94088,3400.4,3399.3,2.94174]
[1721123536545,1.54159959,3400.2,3399.5,2.94155]
[1721123536754,2.94088,3400.4,3399.5,2.94155]
[1721123536755,1.54159959,3400.1,3399.5,2.94155]
[1721123537149,1.54159959,3400.1,3399.4,2.4166]
[1721123537150,4.48270959,3400.1,3399.4,2.4166]
[1721123537770,2.94126,3399.9,3399.1,2.94195]
[1721123537929,4.48285959,3399.9,3399.1,2.94195]
[1721123538134,2.28399555,3399.8,3399.1,2.94195]
[1721123538385,2.28399555,3399.8,3399.2,2.94186]
[1721123538581,1.54159959,3399.8,3399.2,2.94186]
[1721123538870,1.54159959,3399.8,3399.0,2.411]
[1721123538871,4.48294959,3399.8,3399.1,2.94195]
[1721123539027,1.54159959,3399.7,3399.0,2.411]
[1721123539227,1.54159959,3399.7,3399.0,5.35302]
[1721123539481,1.54126675,3399.7,3399.0,5.35302]
[1721123539781,3.20559843,3399.7,3399.1,2.94195]
[1721123539980,1.66433168,3399.7,3399.1,2.94195]
[1721123540482,4.60578168,3399.7,3399.0,2.411]
[1721123540829,6.14704843,3399.7,3399.0,2.411]
[1721123541278,2.94153,3399.6,3399.0,2.411]
[1721123541444,0.90884784,3399.5,3399.0,2.411]
[1721123542146,0.90884784,3399.5,3398.9,2.94211]
[1721123542349,0.90884784,3399.5,3398.6,2.94237]
[1721123542350,3.85046784,3399.5,3398.7,2.94227]
[1721123543374,3.85046784,3399.5,3398.6,2.411]
[1721123543375,5.39095537,3399.5,3398.6,2.411]
[1721123543673,2.24602624,3399.4,3398.3,2.94263]
[1721123543878,2.94196,3399.1,3398.3,2.94263]
[1721123544368,2.94205,3399.0,3398.3,2.94263]
[1721123545872,0.70552871,3399.4,3398.7,2.94229]
[1721123546030,0.60954358,3399.3,3398.7,2.94229]
[1721123546436,2.9417,3399.4,3398.7,2.94229]
[1721123546644,2.9417,3399.4,3398.6,2.94238]
[1721123546851,2.94192,3399.2,3398.4,2.94255]
[1721123547475,2.94192,3399.2,3398.3,2.94264]
[1721123547476,2.94192,3399.2,3398.5,2.94247]
[1721123548173,1.53944926,3399.5,3398.6,2.9423]
[1721123548471,3.09566493,3399.4,3398.6,2.9423]
[1721123548970,2.94192,3399.2,3398.4,2.94249]
[1721123549777,2.94196,3399.1,3398.4,2.94249]
[1721123549935,0.15394493,3399.4,3398.2,5.3537]
[1721123549936,2.94204,3399.0,3398.2,5.3537]
[1721123550137,0.588391,3398.9,3398.2,5.3537]
[1721123550862,3.530521,3398.9,3398.2,5.3537]
[1721123551248,3.530521,3398.9,3398.0,2.94288]
[1721123551496,3.530521,3398.9,3397.1,2.94366]
[1721123551497,2.94236,3398.7,3397.9,2.2653]
[1721123551657,2.94236,3398.7,3397.9,5.20829]
[1721123551853,0.6472881,3398.6,3398.0,2.94288]
[1721123552058,2.94236,3398.7,3398.0,2.94288]
[1721123553162,2.94236,3398.7,3397.9,5.20829]
[1721123553588,2.9425,3398.5,3397.8,2.94307]
[1721123555779,2.94265,3398.3,3397.5,2.94328]
[1721123556099,2.94265,3398.3,3397.6,2.94324]
[1721123556266,2.9425,3398.5,3397.7,2.94308]
[1721123556466,2.94221,3398.8,3397.8,2.94307]
[1721123556671,2.94221,3398.8,3398.0,2.94289]
[1721123556872,0.6472651,3398.7,3398.0,2.94289]
[1721123557072,0.6472651,3398.7,3397.9,5.88588]
[1721123557322,0.6472651,3398.7,3397.9,2.94292]
[1721123557463,0.6472651,3398.7,3398.0,2.9429]
[1721123557864,0.6472651,3398.7,3398.1,2.94282]
[1721123558128,0.6472651,3398.7,3398.2,2.4769]
[1721123558993,2.94196,3399.1,3398.3,2.94259]
[1721123559399,7.37,3399.2,3398.6,2.94231]
[1721123559600,3.09563493,3399.4,3398.6,2.94231]
[1721123560205,3.09563493,3399.4,3398.7,2.9423]
[1721123560506,3.09563493,3399.4,3398.4,2.9425]
[1721123560507,2.94181,3399.3,3398.5,2.94243]
[1721123560684,0.60374449,3399.2,3398.5,2.94243]
[1721123561401,0.60374449,3399.2,3398.6,2.94234]
[1721123562902,0.60374449,3399.2,3398.4,2.94256]
[1721123563362,0.60374449,3399.2,3398.5,2.94246]
[1721123563558,0.60374449,3399.2,3398.6,2.94238]
[1721123563758,2.94179,3399.3,3398.6,2.94238]
[1721123564173,2.94179,3399.3,3398.4,2.94256]
[1721123564174,2.94197,3399.1,3398.4,2.94256]
[1721123564575,2.94179,3399.3,3398.4,2.94256]
[1721123564775,0.15394493,3399.4,3398.4,2.94256]
[1721123564776,2.94186,3399.2,3398.4,2.94256]
[1721123564974,3.09569493,3399.4,3398.6,2.94236]
[1721123565284,1.34583921,3399.3,3398.7,2.94227]
[1721123565495,1.34583921,3399.3,3398.8,2.94219]
[1721123566009,2.94193,3399.2,3398.5,5.24476]
[1721123566176,4.28768921,3399.3,3398.3,2.94263]
[1721123566378,2.4368,3399.0,3398.3,2.94263]
[1721123567105,2.4368,3399.0,3398.1,2.94278]
[1721123567106,2.9422,3398.9,3398.1,2.94278]
[1721123567505,2.94222,3398.8,3398.1,2.94278]
[1721123568006,0.44416341,3399.2,3397.2,7.3]
[1721123568007,0.44416341,3399.2,3397.9,2.3874]
[1721123568309,2.94205,3399.0,3398.3,2.94258]
[1721123568528,0.44416341,3399.2,3398.1,2.9428]
[1721123568529,2.94224,3398.8,3398.1,2.9428]
[1721123569011,5.30294,3398.9,3398.1,2.9428]
[1721123569012,2.9423,3398.7,3398.1,2.9428]
[1721123569568,2.9423,3398.7,3398.0,2.94289]
[1721123570284,2.9423,3398.7,3397.9,2.3874]
[1721123570610,2.9423,3398.7,3398.0,2.94287]
[1721123570783,0.53031,3398.6,3398.0,2.94287]
[1721123572396,3.47273,3398.6,3397.7,2.94313]
[1721123573307,3.47273,3398.6,3397.9,2.94298]
[1721123574476,2.94226,3398.8,3398.1,2.94282]
[1721123574637,2.94199,3399.1,3398.3,2.94261]
[1721123574801,2.9421,3399.0,3398.3,2.94261]
[1721123575012,1.36982534,3398.9,3398.3,2.94261]
[1721123576487,1.36982534,3398.9,3398.5,2.94245]
[1721123576681,7.81416341,3399.2,3398.5,2.94245]
[1721123577230,10.75603341,3399.2,3398.5,2.94245]
[1721123577587,10.75603341,3399.2,3398.6,2.94238]
[1721123577788,3.38603341,3399.2,3398.6,2.94238]
[1721123578346,1.34583921,3399.3,3398.6,2.94238]
[1721123578484,2.94176,3399.4,3398.7,2.94229]
[1721123581024,2.94183,3399.3,3398.5,2.94245]
[1721123581231,4.48189621,3399.3,3398.5,2.94245]
[1721123581749,4.48193621,3399.2,3398.5,2.94245]
[1721123581938,5.41422213,3399.2,3398.6,2.94238]
[1721123582266,2.94176,3399.4,3398.2,2.2739]
[1721123582267,1.54006621,3399.1,3398.7,2.94229]
[1721123582431,1.54006621,3399.3,3398.8,2.9422]
[1721123582612,1.54006621,3399.3,3398.9,2.94207]
[1721123582817,1.54006621,3399.4,3398.7,2.94227]
[1721123583012,1.54006621,3399.4,3398.9,2.94212]
[1721123583251,1.54006621,3399.4,3399.1,2.4291]
[1721123583423,7.37,3399.6,3399.1,5.371]
[1721123583424,8.91006621,3399.6,3399.1,5.371]
[1721123583944,8.91249736,3399.6,3399.1,5.371]
[1721123584142,1.54249736,3399.5,3399.2,2.94185]
[1721123585818,1.54249736,3399.5,3399.1,2.4291]
[1721123586451,2.91298278,3399.5,3399.1,2.94193]
[1721123587129,1.37048542,3399.5,3399.1,2.94193]
[1721123587448,1.54296363,3399.4,3399.1,2.94193]
[1721123588274,1.54296363,3399.3,3399.1,2.94193]
[1721123588457,1.54296363,3399.4,3399.1,2.94193]
[1721123589028,1.54296363,3399.4,3399.2,2.94185]
[1721123589243,1.54296363,3399.5,3399.2,2.94185]
[1721123589448,7.37,3399.6,3399.2,2.94185]
[1721123589449,7.37,3399.6,3399.5,5.3947]
[1721123589665,3.21,3400.1,3399.6,2.94148]
[1721123589666,8.91296363,3399.9,3399.6,2.94148]
[1721123589960,7.37,3399.9,3399.8,2.94134]
[1721123590164,7.37,3399.9,3399.6,2.94148]
[1721123591464,7.37,3399.9,3399.7,2.94143]
[1721123593470,7.37,3399.9,3399.8,2.94134]
[1721123593805,7.37,3400.2,3399.6,2.94149]
[1721123593950,7.37,3400.2,3399.7,2.94142]
[1721123594294,7.37,3400.2,3399.8,2.94133]
[1721123594581,7.37,3400.2,3400.0,2.94116]
[1721123595141,7.37,3400.2,3399.8,2.94133]
[1721123595548,7.37,3400.2,3399.7,2.94142]
[1721123596384,7.37,3400.2,3399.8,2.94133]
[1721123597952,7.37,3400.2,3399.6,2.94151]
[1721123598148,8.55502979,3400.2,3399.6,2.94151]
[1721123599098,8.55502979,3400.2,3399.7,2.94142]
[1721123599608,7.37,3400.2,3399.7,2.94142]
[1721123599810,5.29193,3400.4,3399.8,2.94134]
[1721123600183,2.3511,3400.4,3399.8,2.94134]